fUSD/lending_fUSD_20250811
["ID","MTS","AMOUNT","RATE_DAILY","PERIOD"]
[378486900,1754884249029,-714.63837616,0.00018952,2]
[378486902,1754884249039,-168.55047739,0.00018952,2]
[378486904,1754884249048,-168.55047739,0.00018952,2]
[378486906,1754884249058,-303.28051012,0.00018954,2]
[378486908,1754884249067,-230.32181352,0.00018954,2]
[378486910,1754884249077,-203.37634208,0.00018954,2]
[378486912,1754884249087,-227776.1815247,0.00018954,2]
[378486914,1754884249097,-2501.79692463,0.00018955,2]
[378486916,1754884249107,-3314.21852481,0.00018956,2]
[378486918,1754884249116,-1513.47458018,0.00018957,2]
[378486920,1754884249126,-30359.06631215,0.00018957,2]
[378486922,1754884249135,-1612.2861687,0.00018958,2]
[378486924,1754884249144,-1412.99053818,0.00018958,2]
[378486926,1754884249154,-615.04714773,0.00018958,2]
[378486928,1754884249164,-1612.2861687,0.00018959,2]
[378486930,1754884249174,-168.0,0.00018959,2]
[378486932,1754884249183,-1395.04885753,0.00018961,2]
[378486934,1754884249192,-260.25583773,0.00018961,2]
[378486936,1754884249202,-1395.04885753,0.00018961,2]
[378486938,1754884249211,-615.04714773,0.00018962,2]
[378486940,1754884249220,-227776.1815247,0.00018964,2]
[378486942,1754884249229,-714.63837616,0.00018964,2]
[378486944,1754884249239,-230.32181352,0.00018965,2]
[378486946,1754884249248,-203.37634208,0.00018965,2]
[378486948,1754884249258,-1412.99053818,0.00018965,2]
[378486950,1754884249268,-1100.11981274,0.00018965,2]
[378486952,1754884249278,-615.04714773,0.00018966,2]
[378486954,1754884249287,-303.28051012,0.00018967,2]
[378486956,1754884249297,-2508.87049485,0.00018967,2]
[378486958,1754884249306,-303.28051012,0.00018967,2]
[378486960,1754884249315,-1040.19251324,0.00018967,2]
[378486962,1754884249324,-663.76276169,0.00018967,2]
[378486964,1754884249334,-230.32181352,0.00018968,2]
[378486966,1754884249343,-2501.79692463,0.00018968,2]
[378486968,1754884249354,-1612.2861687,0.00018969,2]
[378486970,1754884249374,-2508.87049485,0.00018969,2]
[378486973,1754884249396,-714.63837616,0.00018969,2]
[378486974,1754884249405,-30359.06631215,0.0001897,2]
[378486976,1754884249414,-203.37634208,0.00018971,2]
[378486978,1754884249423,-1395.04885753,0.00018971,2]
[378486981,1754884249433,-1262.27611624,0.00018971,2]
[378486983,1754884249443,-30359.06631215,0.00018972,2]
[378486985,1754884249452,-260.25583773,0.00018972,2]
[378486987,1754884249462,-1262.27611624,0.00018972,2]
[378486989,1754884249471,-230.32181352,0.00018972,2]
[378486991,1754884249481,-500.0,0.00018973,2]
[378486993,1754884249491,-500.0,0.00018973,2]
[378486995,1754884249500,-500.0,0.00018973,2]
[378486997,1754884249510,-500.0,0.00018973,2]
[378486999,1754884249519,-500.0,0.00018973,2]
[378487001,1754884249529,-501.20244797,0.00018973,2]
[378487003,1754884249538,-500.0,0.00018973,2]
[378487005,1754884249547,-500.98663761,0.00018973,2]
[378487007,1754884249557,-500.0,0.00018973,2]
[378487009,1754884249566,-500.0,0.00018973,2]
[378487011,1754884249575,-160.30038782,0.00018973,2]
[378487013,1754884249584,-165.29135572,0.00018973,2]
[378487015,1754884249593,-500.0,0.00018973,2]
[378487017,1754884249603,-500.15179162,0.00018973,2]
[378487019,1754884249613,-503.15014373,0.00018973,2]
[378487021,1754884249622,-500.0,0.00018973,2]
[378487023,1754884249631,-576.59179543,0.00018973,2]
[378487025,1754884249642,-500.0,0.00018973,2]
[378487027,1754884249651,-207.21940402,0.00018973,2]
[378487029,1754884249665,-501.64333405,0.00018973,2]
[378487031,1754884249674,-513.87382947,0.00018973,2]
[378487033,1754884249683,-501.01111572,0.00018973,2]
[378487035,1754884249693,-500.0,0.00018973,2]
[378487037,1754884249702,-500.0,0.00018973,2]
[378487039,1754884249712,-500.22252914,0.00018973,2]
[378487041,1754884249722,-500.0,0.00018973,2]
[378487043,1754884249732,-258.99521982,0.00018973,2]
[378487045,1754884249741,-160.24718503,0.00018973,2]
[378487047,1754884249751,-639.16169409,0.00018973,2]
[378487049,1754884249760,-500.0,0.00018973,2]
[378487051,1754884249770,-500.0,0.00018973,2]
[378487054,1754884249781,-529.24299805,0.00018973,2]
[378487056,1754884249790,-500.0,0.00018973,2]
[378487058,1754884249800,-500.0,0.00018973,2]
[378487060,1754884249810,-500.0,0.00018973,2]
[378487062,1754884249819,-500.94936456,0.00018973,2]
[378487064,1754884249828,-581.41279628,0.00018973,2]
[378487066,1754884249838,-1040.19251324,0.00018973,2]
[378487067,1754884249848,-3376.677,0.00018974,2]
[378487070,1754884249858,-220.537,0.00018974,2]
[378487071,1754884249867,-227776.1815247,0.00018974,2]
[378487073,1754884249877,-168.55047739,0.00018975,2]
[378487075,1754884249887,-1412.99053818,0.00018975,2]
[378487077,1754884249898,-2283.56191589,0.00018975,2]
[378487080,1754884249907,-30359.06631215,0.00018976,2]
[378487081,1754884249917,-1100.11981274,0.00018976,2]
[378487084,1754884249927,-1100.11981274,0.00018977,2]
[378487085,1754884249936,-203.37634208,0.00018978,2]
[378487087,1754884249945,-663.76276169,0.0001898,2]
[378487090,1754884249955,-663.76276169,0.0001898,2]
[378487091,1754884249964,-150.0,0.00018981,2]
[378487093,1754884249974,-1513.47458018,0.00018981,2]
[378487095,1754884249983,-1395.04885753,0.00018981,2]
[378487097,1754884249992,-30359.06631215,0.00018982,2]
[378487099,1754884250001,-363.59374199,0.00018982,2]
[378487102,1754884250011,-463.40378881,0.00018983,2]
[378487103,1754884250020,-563.21383563,0.00018984,2]
[378487105,1754884250030,-1412.99053818,0.00018984,2]
[378487107,1754884250039,-303.28051012,0.00018985,2]
[378487109,1754884250048,-3314.21852481,0.00018985,2]
[378487112,1754884250058,-1262.27611624,0.00018985,2]
[378487113,1754884250067,-663.02388245,0.00018985,2]
[378487116,1754884250077,-1040.19251324,0.00018986,2]
[378487118,1754884250086,-303.28051012,0.00018986,2]
[378487120,1754884250096,-762.83392927,0.00018986,2]
[378487121,1754884250105,-663.76276169,0.00018986,2]
[378487124,1754884250114,-158.12108425,0.00018986,2]
[378487126,1754884250124,-169.11232504,0.00018986,2]
[378487128,1754884250133,-158.08503441,0.00018986,2]
[378487130,1754884250142,-150.00000001,0.00018986,2]
[378487132,1754884250151,-150.0,0.00018986,2]
[378487133,1754884250162,-862.64397609,0.00018987,2]
[378487136,1754884250171,-962.45402291,0.00018988,2]
[378487138,1754884250180,-2508.87049485,0.00018988,2]
[378487140,1754884250190,-714.63837616,0.00018988,2]
[378487142,1754884250199,-1412.99053818,0.00018988,2]
[378487144,1754884250209,-260.25583773,0.00018989,2]
[378487146,1754884250219,-7365.3200613,0.00018989,2]
[378487148,1754884250229,-1062.26406973,0.00018989,2]
[378487150,1754884250240,-3314.21852481,0.00018989,2]
[378487152,1754884250249,-1395.04885753,0.0001899,2]
[378487154,1754884250260,-337.93445523,0.0001899,2]
[378487156,1754884250269,-1162.07411656,0.0001899,2]
[378487158,1754884250278,-337.93445523,0.0001899,2]
[378487160,1754884250288,-337.93445523,0.0001899,2]
[378487162,1754884250297,-2501.79692463,0.0001899,2]
[378487164,1754884250307,-260.25583773,0.0001899,2]
[378487166,1754884250316,-260.25583773,0.00018991,2]
[378487168,1754884250327,-663.76276169,0.00018991,2]
[378487169,1754884250336,-2283.56191589,0.00018991,2]
[378487170,1754884250345,-1100.11981274,0.00018993,2]
[378487171,1754884250354,-168.55047739,0.00018993,2]
[378487172,1754884250363,-227776.1815247,0.00018994,2]
[378487173,1754884250372,-230.32181352,0.00018994,2]
[378487174,1754884250381,-2508.87049485,0.00018994,2]
[378487175,1754884250390,-1262.27611624,0.00018995,2]
[378487176,1754884250399,-2283.56191589,0.00018995,2]
[378487177,1754884250408,-615.04714773,0.00018995,2]
[378487178,1754884250417,-168.55047739,0.00018996,2]
[378487179,1754884250426,-3314.21852481,0.00018996,2]
[378487180,1754884250435,-2501.79692463,0.00018997,2]
[378487181,1754884250443,-500.0,0.00018997,2]
[378487182,1754884250452,-1040.19251324,0.00018997,2]
[378487184,1754884250462,-417.36,0.00018998,2]
[378487186,1754884250471,-946.95097409,0.00018998,5]
[378487188,1754884250480,-169.1468356,0.00018998,2]
[378487190,1754884250489,-1000.0,0.00018999,2]
[378487192,1754884250499,-1000.0,0.00018999,2]
[378487194,1754884250508,-1000.0,0.00018999,2]
[378487196,1754884250517,-1000.0,0.00018999,2]
[378487198,1754884250526,-1000.0,0.00018999,2]
[378487200,1754884250535,-1000.0,0.00018999,2]
[378487202,1754884250545,-1007.3093,0.00018999,2]
[378487204,1754884250554,-29996.76218419,0.00018999,2]
[378487206,1754884250564,-116666.41710467,0.00018999,7]
[378487208,1754884250574,-423.14202252,0.00018999,2]
[378487210,1754884250583,-400.0,0.00018999,2]
[378487212,1754884250592,-400.0,0.00018999,2]
[378487214,1754884250601,-573.41,0.00018999,2]
[378487216,1754884250610,-400.0,0.00018999,2]
[378487218,1754884250620,-400.0,0.00018999,2]
[378487220,1754884250629,-400.0,0.00018999,2]
[378487222,1754884250638,-400.0,0.00018999,2]
[378487224,1754884250647,-400.0,0.00018999,2]
[378487226,1754884250661,-400.0,0.00018999,2]
[378487228,1754884250671,-400.0,0.00018999,2]
[378487230,1754884250680,-400.0,0.00018999,2]
[378487232,1754884250689,-400.0,0.00018999,2]
[378487234,1754884250698,-400.0,0.00018999,2]
[378487236,1754884250707,-400.0,0.00018999,2]
[378487238,1754884250716,-400.0,0.00018999,2]
[378487240,1754884250726,-400.0,0.00018999,2]
[378487242,1754884250735,-1000.0,0.00018999,2]
[378487244,1754884250745,-400.0,0.00018999,2]
[378487246,1754884250754,-400.0,0.00018999,2]
[378487248,1754884250763,-510.50382706,0.00018999,2]
[378487250,1754884250772,-400.0,0.00018999,2]
[378487252,1754884250781,-400.0,0.00018999,2]
[378487254,1754884250790,-400.0,0.00018999,2]
[378487256,1754884250799,-400.0,0.00018999,2]
[378487258,1754884250809,-400.0,0.00018999,2]
[378487260,1754884250818,-400.0,0.00018999,2]
[378487262,1754884250827,-402.79813481,0.00018999,2]
[378487264,1754884250839,-401.54468704,0.00018999,2]
[378487266,1754884250848,-417.06818287,0.00018999,2]
[378487268,1754884250858,-400.0,0.00018999,2]
[378487270,1754884250867,-2125.79,0.00018999,2]
[378487272,1754884250877,-4643.68,0.00018999,2]
[378487274,1754884250887,-400.0,0.00018999,2]
[378487276,1754884250900,-1546.07,0.00018999,2]
[378487278,1754884250910,-400.0,0.00018999,2]
[378487280,1754884250919,-457.87080987,0.00018999,7]
[378487282,1754884250928,-1696.06,0.00018999,2]
[378487284,1754884250938,-400.0,0.00018999,2]
[378487286,1754884250948,-976.32,0.00018999,2]
[378487288,1754884250957,-1996.02,0.00018999,2]
[378487290,1754884250966,-1773.64,0.00018999,2]
[378487292,1754884250976,-211.73953792,0.00018999,7]
[378487294,1754884250986,-400.0,0.00018999,2]
[378487296,1754884250995,-2262.71,0.00018999,2]
[378487298,1754884251004,-509.52,0.00018999,2]
[378487300,1754884251013,-1582.58,0.00018999,2]
[378487302,1754884251022,-1582.58,0.00018999,2]
[378487304,1754884251031,-2022.69,0.00018999,2]
[378487306,1754884251040,-1582.58,0.00018999,2]
[378487308,1754884251049,-1582.58,0.00018999,2]
[378487310,1754884251058,-1582.58,0.00018999,2]
[378487312,1754884251067,-1582.58,0.00018999,2]
[378487314,1754884251076,-1582.58,0.00018999,2]
[378487316,1754884251089,-1582.58,0.00018999,2]
[378487318,1754884251099,-1582.58,0.00018999,2]
[378487320,1754884251109,-150.0,0.00018999,2]
[378487322,1754884251119,-199.55272616,0.00018999,2]
[378487325,1754884251129,-1259.55,0.00018999,2]
[378487326,1754884251139,-1582.58,0.00018999,2]
[378487329,1754884251150,-1582.58,0.00018999,2]
[378487331,1754884251160,-1582.58,0.00018999,2]
[378487333,1754884251170,-1582.58,0.00018999,2]
[378487335,1754884251180,-1582.58,0.00018999,2]
[378487337,1754884251190,-1582.58,0.00018999,2]
[378487339,1754884251199,-1582.58,0.00018999,2]
[378487341,1754884251209,-1582.58,0.00018999,2]
[378487343,1754884251218,-1582.58,0.00018999,2]
[378487345,1754884251228,-1582.58,0.00018999,2]
[378487347,1754884251237,-1582.58,0.00018999,2]
[378487349,1754884251247,-1582.58,0.00018999,2]
[378487351,1754884251257,-1582.58,0.00018999,2]
[378487354,1754884251267,-1582.58,0.00018999,2]
[378487356,1754884251276,-1582.71828494,0.00018999,2]
[378487358,1754884251286,-1584.79,0.00018999,2]
[378487360,1754884251295,-3286.94,0.00018999,2]
[378487362,1754884251305,-671.27430589,0.00018999,2]
[378487363,1754884251315,-666.0,0.00018999,2]
[378487366,1754884251324,-300.0,0.00018999,2]
[378487368,1754884251334,-300.0,0.00018999,2]
[378487370,1754884251343,-300.0,0.00018999,2]
[378487372,1754884251353,-300.0,0.00018999,2]
[378487374,1754884251363,-300.0,0.00018999,2]
[378487376,1754884251373,-258.02831829,0.00018999,2]
[378487378,1754884251382,-1513.47458018,0.00018999,2]
[378487380,1754884251391,-1448140.9609331,0.00019,2]
[378487382,1754884251400,-29945.41715176,0.00019,2]
[378487384,1754884251410,-5000.0,0.00019,4]
[378487386,1754884251419,-1631986.57902712,0.00019,2]
[378487448,1754884251993,-2453.67750391,0.00019,2]
[378487451,1754884252009,-201596.42208,0.00019,2]
[378487453,1754884252022,-608.25,0.00019,2]
[378487456,1754884252038,-2866.7932113,0.00019,2]
[378487499,1754884253361,-319.21468529,0.00018819,2]
[378487500,1754884253370,-176.84531499,0.00018819,2]
[378487502,1754884253508,-323.15468501,0.00018819,2]
[378487503,1754884253519,-500.0,0.00018819,2]
[378487504,1754884253528,-276.91935286,0.00018819,2]
[378487506,1754884253538,-400.0,0.0001885,2]
[378487507,1754884253548,-455.19,0.0001885,2]
[378487508,1754884253558,-1188.70252488,0.00018883,2]
[378487509,1754884253568,-703741.64237356,0.00019,2]
[378487515,1754884254363,-1237.31323416,0.00018768,2]
[378487517,1754884254375,-275.90769583,0.00018768,2]
[378487518,1754884254386,-801.98382031,0.00019,2]
[378487519,1754884254425,-288.05571284,0.00018899,2]
[378487573,1754884364615,22163.3,0.00017914,2]
[378487626,1754884472915,23900.0,0.00017914,2]
[378487638,1754884500832,275.81,0.00017907,2]
[378487652,1754884533753,168.8,0.00017899,2]
[378487676,1754884605158,5149.47,0.00017872,2]
[378487693,1754884663376,1000.0,0.00017874,2]
[378487695,1754884666105,506.0,0.00017884,2]
[378487722,1754884725019,250.0,0.00015,2]
[378487723,1754884726410,300.0,0.00017,2]
[378487752,1754884823238,10763.47,0.00017834,2]
[378487765,1754884883228,250.0,0.0001782,2]
[378487766,1754884904141,261.84,0.00017806,2]
[378487767,1754884919870,159.74,0.00017804,2]
[378487768,1754884935614,515.0,0.00017884,2]
[378487769,1754884973822,167.45,0.00017801,2]
[378487770,1754884976357,1362954.0737723,0.00017,2]
[378487771,1754884976382,486000.0,0.00017,2]
[378487772,1754884976405,160.0,0.00017,2]
[378487773,1754884976426,400.0,0.00017,2]
[378487774,1754884976460,5242.23137084,0.00017,2]
[378487775,1754884976485,5242.23137084,0.00017,2]
[378487776,1754884976508,5242.23137084,0.00017,2]
[378487777,1754884976532,5242.23137084,0.00017,2]
[378487778,1754884976559,5242.23137084,0.00017,2]
[378487779,1754884976582,5242.23137084,0.00017,2]
[378487780,1754884976604,5242.23137084,0.00017,2]
[378487781,1754884976626,5242.23137084,0.00017,2]
[378487782,1754884976648,5242.23137084,0.00017,2]
[378487783,1754884976997,5242.23137084,0.00017,2]
[378487784,1754884989703,-550.0,0.00016999,2]
[378487785,1754884989722,-550.0,0.00017,2]
[378487786,1754884989741,-699.64,0.00017,2]
[378487787,1754884996551,-1834.61,0.00017,2]
[378487788,1754885004238,-2138.9,0.00017,2]
[378487789,1754885010819,-400.0,0.00017,2]
[378487790,1754885018614,-400.0,0.00017,2]
[378487792,1754885027223,-3296.39,0.00016999,2]
[378487793,1754885034161,-1802.0,0.00016999,2]
[378487794,1754885043367,-223.93655079,0.000169,2]
[378487795,1754885043442,-223.93655079,0.00016999,2]
[378487796,1754885043454,-1869.66689842,0.00016999,2]
[378487797,1754885050003,-168.0,0.00016959,2]
[378487798,1754885050106,-168.0,0.00016999,2]
[378487799,1754885050149,-64.0,0.00016999,2]
[378487800,1754885057346,-250.0,0.00016979,2]
[378487801,1754885057390,-250.0,0.00016999,2]
[378487802,1754885057410,-772.25,0.00016999,2]
[378487803,1754885064211,-400.0,0.00016999,2]
[378487804,1754885075661,-400.0,0.00016999,2]
[378487806,1754885083317,-400.0,0.00016998,2]
[378487807,1754885085437,218.57,0.00013699,2]
[378487808,1754885091076,-100.0,0.00016998,2]
[378487809,1754885091103,-500.0,0.00016998,2]
[378487810,1754885091133,-500.0,0.00016998,2]
[378487811,1754885091153,-100.0,0.00016998,2]
[378487812,1754885091164,-400.0,0.00016998,2]
[378487813,1754885091174,-100.0,0.00016998,2]
[378487814,1754885091189,-400.0,0.00016998,2]
[378487815,1754885091198,-100.0,0.00016998,2]
[378487816,1754885091210,-48.23046311,0.00016998,2]
[378487817,1754885098786,-351.76953689,0.00016998,2]
[378487818,1754885098816,-21.94386297,0.00016998,2]
[378487819,1754885098829,-154.96320028,0.00016998,2]
[378487820,1754885098839,-196.80633661,0.00016998,2]
[378487821,1754885098860,-176.90706325,0.00016998,2]
[378487822,1754885106150,-166.00756879,0.000169,2]
[378487823,1754885110799,150.0,0.00015288,2]
[378487824,1754885110837,150.0,0.00015854,2]
[378487825,1754885110912,150.0,0.0001642,2]
[378487826,1754885112383,169.11232504,0.00015288,2]
[378487827,1754885112462,158.12108425,0.00015288,2]
[378487828,1754885118918,158.08503441,0.00015288,2]
[378487829,1754885120407,150.00000001,0.00015288,2]
[378487830,1754885123689,-1316.72006324,0.000169,2]
[378487831,1754885131679,-311.04720091,0.000169,2]
[378487832,1754885131706,-159.3236402,0.00016986,2]
[378487833,1754885139146,-286.19,0.00016997,2]
[378487834,1754885147274,-913.81,0.00016997,2]
[378487835,1754885154077,-300.0,0.00016997,2]
[378487836,1754885154108,-273.17,0.00016997,2]
[378487837,1754885170466,-515.34365101,0.000169,2]
[378487838,1754885178965,-87.00269798,0.000169,2]
[378487839,1754885186673,-700.75221994,0.000169,2]
[378487840,1754885195167,-3580.21717309,0.000169,2]
[378487841,1754885195191,-770.21296703,0.000169,2]
[378487842,1754885195212,-583.0856015,0.00016959,2]
[378487843,1754885197808,-400.0,0.00016958,2]
[378487844,1754885204732,-99.76996081,0.00016958,2]
[378487845,1754885204786,-474.43007838,0.00016958,2]
[378487846,1754885212469,-391.5,0.000169,2]
[378487847,1754885219280,-477.6,0.000169,2]
[378487848,1754885226562,-791.75,0.000169,2]
[378487849,1754885235435,-400.0,0.000169,2]
[378487850,1754885243669,-825.19,0.000169,2]
[378487851,1754885250590,-640.15,0.000169,2]
[378487852,1754885259122,-865.92,0.000169,2]
[378487853,1754885266067,-1118.98,0.000169,2]
[378487854,1754885275332,-968.6,0.000169,2]
[378487855,1754885283090,-678.18,0.000169,2]
[378487856,1754885290298,-2318.31,0.000169,2]
[378487857,1754885297709,-2563.87516221,0.000169,2]
[378487858,1754885307000,-1281.89,0.000169,2]
[378487859,1754885314417,-483.89085338,0.00016899,2]
[378487860,1754885314801,-131.54829324,0.00016899,2]
[378487861,1754885323034,-273.14829324,0.00016899,2]
[378487862,1754885323119,-95.30341352,0.00016899,2]
[378487864,1754885330902,-500.0,0.00016899,2]
[378487865,1754885330929,-81.33,0.00016899,2]
[378487866,1754885331068,-418.67,0.00016899,2]
[378487867,1754885338881,-500.0,0.00016899,2]
[378487868,1754885338909,-138.98251769,0.00016899,2]
[378487869,1754885338952,-136.68496462,0.00016899,2]
[378487871,1754885343781,7000.0,0.00016999,7]
[378487872,1754885346991,-400.0,0.00016899,2]
[378487873,1754885355042,-223.88,0.00016667,2]
[378487874,1754885355069,-685.97,0.00016667,2]
[378487876,1754885362935,-34.33895781,0.00016899,2]
[378487877,1754885362973,-331.32208438,0.00016899,2]
[378487878,1754885370773,-168.67791562,0.00016899,2]
[378487879,1754885370818,-62.64416876,0.00016899,2]
[378487880,1754885379071,-300.0,0.00016899,2]
[378487881,1754885389662,-137.35583124,0.00016899,2]
[378487882,1754885389690,-500.0,0.00016899,2]
[378487883,1754885389717,-500.0,0.00016899,2]
[378487884,1754885390099,-130.58834804,0.00016899,2]
[378487885,1754885396934,-369.41165196,0.00016899,2]
[378487886,1754885396975,-255.75669608,0.00016899,2]
[378487887,1754885405645,-244.24330392,0.00016899,2]
[378487888,1754885405672,-291.97373716,0.00016899,2]
[378487889,1754885406075,-203.26591784,0.00016899,2]
[378487890,1754885412510,-346.73408216,0.00016899,2]
[378487891,1754885412556,-214.83183568,0.00016899,2]
[378487892,1754885412652,-85.16816432,0.00016899,2]
[378487893,1754885422587,-626.49,0.00016899,2]
[378487894,1754885422617,-573.51,0.00016899,2]
[378487895,1754885429392,-500.0,0.00016899,2]
[378487896,1754885429443,-959.71,0.000169,2]
[378487902,1754885432422,-1168.95995637,0.000169,2]
[378487903,1754885432434,-450.0,0.000169,2]
[378487905,1754885432562,-341.08853507,0.000169,2]
[378487907,1754885432572,-522.11117563,0.000169,2]
[378487908,1754885432583,-2970.45822366,0.000169,2]
[378487909,1754885432592,-186.81764019,0.000169,2]
[378487910,1754885432601,-53852.82945385,0.000169,2]
[378487911,1754885432610,-900.21584622,0.000169,2]
[378487912,1754885432619,-28603.82151289,0.000169,2]
[378487913,1754885432629,-301.44925152,0.000169,2]
[378487914,1754885432638,-12489.37592825,0.000169,2]
[378487915,1754885432647,-1022.49416677,0.000169,2]
[378487916,1754885432657,-3071.56802044,0.000169,2]
[378487917,1754885432667,-300.0,0.00016929,2]
[378487919,1754885432676,-300.0,0.00016929,2]
[378487921,1754885432686,-300.0,0.00016949,2]
[378487922,1754885432695,-521.0,0.00016958,2]
[378487923,1754885432704,-30057.9143985,0.00016959,2]
[378487924,1754885432713,-623.0,0.00016959,2]
[378487925,1754885432723,-6569.0,0.00016959,2]
[378487926,1754885432732,-311.96,0.00016963,3]
[378487927,1754885432741,-500.0,0.00016973,2]
[378487929,1754885432751,-624.96574972,0.00016973,2]
[378487931,1754885432760,-500.0,0.00016973,2]
[378487933,1754885432769,-500.0,0.00016973,2]
[378487934,1754885432778,-502.32899471,0.00016973,2]
[378487935,1754885432787,-502.50223927,0.00016973,2]
[378487936,1754885432797,-346.1085939,0.00016973,2]
[378487948,1754885432900,-153.8914061,0.00016973,2]
[378487950,1754885432910,-500.0,0.00016973,2]
[378487952,1754885432919,-308.51803595,0.00016973,2]
[378487954,1754885432928,-503.73371942,0.00016973,2]
[378487956,1754885432938,-500.0,0.00016973,2]
[378487958,1754885432948,-501.14460492,0.00016973,2]
[378487960,1754885432957,-500.0,0.00016973,2]
[378487961,1754885432966,-500.0,0.00016973,2]
[378487962,1754885432975,-500.0,0.00016973,2]
[378487963,1754885432985,-161.68501857,0.00016973,2]
[378487964,1754885432994,-500.0,0.00016973,2]
[378487965,1754885433003,-500.0,0.00016973,2]
[378487966,1754885433013,-370.5802928,0.00016973,2]
[378487967,1754885433022,-500.0,0.00016973,2]
[378487968,1754885433032,-586.63118841,0.00016973,2]
[378487969,1754885433041,-500.0,0.00016973,2]
[378487970,1754885433052,-500.29449522,0.00016973,2]
[378487971,1754885433062,-500.0,0.00016973,2]
[378487972,1754885433072,-500.63143278,0.00016973,2]
[378487973,1754885433081,-500.0,0.00016973,2]
[378487974,1754885433091,-500.0,0.00016973,2]
[378487975,1754885433101,-500.75209603,0.00016973,2]
[378487976,1754885433111,-161.7181513,0.00016973,2]
[378487977,1754885433122,-500.0,0.00016973,2]
[378487978,1754885433131,-500.0,0.00016973,2]
[378487979,1754885433140,-500.0,0.00016973,2]
[378487980,1754885433150,-501.59307884,0.00016973,2]
[378487981,1754885433159,-398.3289421,0.00016973,2]
[378487982,1754885433169,-500.0,0.00016973,2]
[378487983,1754885433178,-366.10716581,0.00016973,2]
[378487984,1754885433187,-500.0,0.00016973,2]
[378487985,1754885433197,-201.0,0.00016987,2]
[378487986,1754885433207,-876.26032135,0.0001699,2]
[378487987,1754885433216,-876.26032135,0.0001699,2]
[378487988,1754885433228,-876.26032135,0.0001699,2]
[378487989,1754885433238,-300.0,0.00016998,2]
[378487990,1754885433248,-397.04998706,0.00016999,2]
[378487991,1754885433258,-4081.88187875,0.00016999,2]
[378487992,1754885433287,-16668.63685623,0.00016999,2]
[378487993,1754885433296,-300.0,0.00016999,2]
[378487994,1754885433308,-1287.43085593,0.00016999,5]
[378487995,1754885433318,-1287.43085594,0.00016999,5]
[378487996,1754885433328,-300.0,0.00016999,2]
[378487997,1754885433337,-1176.65,0.00016999,2]
[378487998,1754885433347,-400.0,0.00016999,2]
[378487999,1754885433356,-702.46,0.00016999,2]
[378488000,1754885433366,-1028.12,0.00016999,2]
[378488001,1754885433375,-626.07,0.00016999,2]
[378488002,1754885433384,-402.8522338,0.00016999,2]
[378488003,1754885433394,-113655.3618066,0.00016999,7]
[378488004,1754885433405,-6090.5,0.00016999,7]
[378488005,1754885436892,-500.0,0.00016972,2]
[378488006,1754885436919,-500.0,0.00016972,2]
[378488007,1754885436946,-401.15,0.00016972,2]
[378488008,1754885437154,-98.85,0.00016972,2]
[378488027,1754885438359,-646.2518192,0.00016972,2]
[378488028,1754885438369,-291.04737926,0.00016972,2]
[378488029,1754885438379,-24522.80104577,0.00016999,7]
[378488030,1754885438388,-5327.92,0.00016999,2]
[378488031,1754885438398,-906.83,0.00016999,2]
[378488032,1754885438407,-1451.53,0.00016999,2]
[378488033,1754885438416,-400.0,0.00016999,2]
[378488034,1754885438425,-1920.06,0.00016999,2]
[378488035,1754885438435,-400.0,0.00016999,2]
[378488036,1754885438444,-2841.47,0.00016999,2]
[378488037,1754885438453,-1325.24,0.00016999,2]
[378488038,1754885438462,-2152.8,0.00016999,2]
[378488039,1754885438471,-948.57,0.00016999,2]
[378488040,1754885438480,-402.82258481,0.00016999,2]